Cogmind - Beta 13 @@@ ROGUE MODE // 2024.04.22 @ 15:24:07 Player: Oldman Pu Result: Destroyed by 49-2CG(R) with Subdweller Beam Cannon Performance ------------- Evolutions (0) 0 Regions Visited (2) 400 Robots Destroyed (22) 110 Value Destroyed (610) 610 Prototype IDs (0) 0 Alien Tech Used (0) 0 Bonus (0) 0 TOTAL SCORE: 1120 Bonus ------- None Cogmind --------- Core Integrity 0/250 Matter 291/300 Energy 250/250 System Corruption 0% Temperature Cool (9) Movement Rolling (95) Ox1 Location -10/Subcaves Parts ------- > --- POWER (1) -------- Ion Engine > --- PROPULSION (2) --- Wheel Wheel > --- UTILITY (2) ------ Large Storage Unit Core Shielding > --- WEAPON (2) ------- Light Assault Rifle Subdweller Machine Gun > --- INVENTORY (15) --- Wheel Wheel Wheel Wheel Compact Wheel Compact Wheel Heat Sink Heat Sink Small Storage Unit Weapon Shielding Small Laser Peak State ------------ > --- POWER ------------ Ion Engine > --- PROPULSION ------- Wheel Wheel > --- UTILITY ---------- Large Storage Unit Core Shielding > --- WEAPON ----------- Light Assault Rifle Subdweller Machine Gun > --- INVENTORY -------- Wheel Wheel Wheel Wheel Compact Wheel Compact Wheel Heat Sink Heat Sink Small Storage Unit Weapon Shielding [Rating: 9] Favorites ----------- Power Ion Engine Engine Ion Engine Propulsion Wheel Wheel Wheel Utility Large Storage Unit Storage Large Storage Unit Processor Targeting Computer Protection Core Shielding Weapon Light Assault Rifle Energy Gun Medium Laser Ballistic Gun Light Assault Rifle Build | -11 -10 -10 ------- Run | Yrd Mat Sub Slots Evolved . | . . . Power . | . . . Propulsion . | . . . Utility . | . . . Weapon . | . . . Parts Attached 27 | 6 21 . Power 4 | 1 3 . Engine 4 | 1 3 . Core . | . . . Reactor . | . . . Propulsion 9 | 2 7 . Treads . | . . . Leg . | . . . Wheel 9 | 2 7 . Hover . | . . . Flight . | . . . Utility 5 | 1 4 . Device . | . . . Storage 2 | 1 1 . Processor 1 | . 1 . Hackware . | . . . Protection 2 | . 2 . Artifact . | . . . Weapon 9 | 2 7 . Energy Gun 2 | 1 1 . Energy Cannon . | . . . Ballistic Gun 7 | 1 6 . Ballistic Cannon . | . . . Launcher . | . . . Special Weapon . | . . . Impact Weapon . | . . . Slashing Weapon . | . . . Piercing Weapon . | . . . Special Melee Weapon . | . . . Unidentified Prototypes . | . . . Parts Lost 5 | . 5 . Power 1 | . 1 . Propulsion 1 | . 1 . Utility . | . . . Weapon 3 | . 3 . Highest Loss Streak 2 | . 2 . To Critical Strikes . | . . . Average Slot Usage (%) 98 | . 98 100 Engine 13 | . 13 14 Wheel 27 | . 27 28 Storage 14 | . 14 14 Processor 3 | . 4 . Protection 10 | . 9 14 Energy Gun 4 | . 4 . Ballistic Gun 23 | . 22 28 Naked Turns . | . . . Heaviest Build 31 | 14 31 31 Greatest Support 32 | 32 32 20 Greatest Overweight (x) 3 | . 3 1 Average Overweight (x) . | . . 1 Largest Inventory Capacity 15 | 8 15 15 Average Capacity 14 | 7 14 15 Most Carried 11 | . 10 11 Average Carried 5 | . 4 10 Final Capacity 15 | 8 15 15 Final Carried 11 | . 10 11 Class Distribution -------------------- 75% | Mutant 24% | Scavenger-Mutant Dominant Class ---------------- Mutant | -10/Materials Mutant | -10/Subcaves Resources | -11 -10 -10 ----------- Run | Yrd Mat Sub Matter Collected 663 | 172 455 36 Remotely . | . . . Salvage Created 753 | . 674 79 Parts 45 | . 44 1 Haulers Intercepted 1 | . 1 . Recyclers Shooed 1 | . 1 . Parts Field Recycled . | . . . Retrieved Matter . | . . . Parts Self-Destructed 6 | . . 6 Prevented . | . . . Kills | -11 -10 -10 ------- Run | Yrd Mat Sub Combat Hostiles Destroyed 16 | . 14 2 Guns 16 | . 14 2 Classes Destroyed 7 | . 7 . Worker 1 | . 1 . Builder 1 | . 1 . Hauler 1 | . 1 . Watcher 3 | . 3 . Swarmer 2 | . 2 . Grunt 13 | . 11 2 Subdweller 1 | . 1 . Best Kill Streak 6 | . 6 2 Combat Bots Only 6 | . 6 2 Max Kills in Single Turn 2 | . 2 1 Gunslinging . | . . . Exploded . | . . . Melee . | . . . Uniques/NPCs Destroyed . | . . . Combat | -11 -10 -10 -------- Run | Yrd Mat Sub Hostile Shots Fired 86 | . 73 13 Missed 19 | . 17 2 Damage Taken 995 | . 769 226 Core 267 | . 150 117 Absorbed by Shields . | . . . Redirected to Shielding 47 | . 19 28 Core Remaining (%) 100 | 100 . . Volleys Fired 91 | . 76 15 Largest 2 | . 2 2 Hottest 70 | . 70 50 Shots Fired 177 | . 147 30 Gun 177 | . 147 30 Cannon . | . . . Launcher . | . . . Special . | . . . Kinetic 147 | . 117 30 Thermal 30 | . 30 . Explosive . | . . . Electromagnetic . | . . . Robot Hit Streak 10 | . 10 10 Robot Miss Streak 5 | . 5 1 Penetration Max . | . . . Secondary Targets 1 | . 1 . Max Gunslinging Chain 1 | . 1 . Shots Hit Robots 106 | . 92 14 Core Hits 50 | . 44 6 Critical Kills . | . . . Critical Parts Destroyed . | . . . Critical Strikes 3 | . 2 1 Burn 2 | . 2 . Destroy 1 | . . 1 Melee Attacks . | . . . Impact . | . . . Slashing . | . . . Piercing . | . . . Sneak Attacks . | . . . Combat Hostiles . | . . . Follow-up Attacks . | . . . Damage Inflicted 1178 | . 984 194 Guns 1178 | . 984 194 Cannons . | . . . Explosions . | . . . Melee . | . . . Ramming . | . . . Kinetic 905 | . 711 194 Thermal 273 | . 273 . Explosive . | . . . Electromagnetic . | . . . Impact . | . . . Slashing . | . . . Piercing . | . . . Highest Corruption . | . . . Average Corruption . | . . . Corruption Purged . | . . . Corruption Blocked . | . . . Overload Shots . | . . . Overflow Damage . | . . . Projectiles . | . . . Explosions . | . . . Melee . | . . . Knockbacks . | . . . Impact . | . . . Kinetic . | . . . Secondary . | . . . Self-Inflicted Damage . | . . . Shots . | . . . Rammed . | . . . Targets Rammed . | . . . Kicked . | . . . Crushed . | . . . Highest Temperature 179 | . 179 12 Average Temperature 53 | . 53 12 Received Heat Transfer 390 | . 273 117 Siege Activations . | . . . Robots Corrupted . | . . . Combat Hostiles . | . . . Parts Fried . | . . . Impact Corruptions . | . . . Robots Melted . | . . . Combat Hostiles . | . . . Parts Melted 3 | . 3 . Heat Transferred 962 | . 962 . Parts Sabotaged . | . . . Parts Stolen . | . . . Parts Stripped . | . . . Power Chain Reactions . | . . . Alert | -11 -10 -10 ------- Run | Yrd Mat Sub Peak Influence 261 | . 261 . Initial . | . . . Average 89 | . 92 . Maximum Alert Level 1 | . 1 . Low Security (%) 93 | 100 93 . Level 1 6 | . 6 . Level 2 . | . . . Level 3 . | . . . Level 4 . | . . . Level 5 . | . . . High Security . | . . . Max Security . | . . . Squads Dispatched 1 | . 1 . Investigation 1 | . 1 . Extermination . | . . . Reinforcement . | . . . Assault . | . . . Garrison . | . . . Intercept . | . . . Searches Triggered . | . . . Construction Impeded . | . . . Haulers Reinforced . | . . . Active Scanning Responses . | . . . Cargo Convoy Interrupts . | . . . Stealth | -11 -10 -10 --------- Run | Yrd Mat Sub Distress Signals 1 | . 1 . Communications Jammed . | . . . Distress Signals . | . . . Times Spotted 25 | . 22 3 Peak Tracking Total 6 | . 6 2 Tactical Retreats 1 | . 1 . Traps | -11 -10 -10 ------- Run | Yrd Mat Sub Traps Triggered 3 | . 3 . Indirectly . | . . . Trap Hack Attempts . | . . . Triggered . | . . . Disarmed . | . . . Reprogrammed . | . . . Reused . | . . . Traps Extracted . | . . . Installed . | . . . Triggered . | . . . Machines | -11 -10 -10 ---------- Run | Yrd Mat Sub Machines Disabled . | . . . Max in Single Turn . | . . . Machines Repaired . | . . . Machines Dismantled . | . . . Machines Sabotaged . | . . . Overloaded Fab Kills . | . . . Hacking | -11 -10 -10 --------- Run | Yrd Mat Sub Machines Accessed 5 | . 5 . Terminals 5 | . 5 . Fabricators . | . . . Repair Stations . | . . . Recycling Units . | . . . Scanalyzers . | . . . Garrison Access . | . . . Total Hacks 13 | . 13 . Successful 9 | . 9 . Failed 4 | . 4 . Catastrophic 1 | . 1 . Database Lockouts . | . . . Manual . | . . . Terminals 13 | . 13 . Fabricators . | . . . Repair Stations . | . . . Recycling Units . | . . . Scanalyzers . | . . . Garrison Access . | . . . Terminal Hacks 9 | . 9 . Robot Analysis 1 | . 1 . Emergency Access Points 1 | . 1 . Recycling Unit Index 1 | . 1 . Alert Level 1 | . 1 . Locate Traps 1 | . 1 . Dispatch Records 2 | . 2 . Security Status 1 | . 1 . Zone Layout 1 | . 1 . Fabricator Hacks . | . . . Repair Station Hacks . | . . . Recycling Unit Hacks . | . . . Scanalyzer . | . . . Garrison Access Hacks . | . . . Unauthorized Hacks . | . . . Terminals . | . . . Fabricators . | . . . Repair Stations . | . . . Recycling Units . | . . . Scanalyzers . | . . . Garrison Access . | . . . Data Cores Recovered . | . . . Used . | . . . Hacking Detections 4 | . 4 . Full Trace Events 1 | . 1 . Feedback Events . | . . . Feedback Blocked . | . . . Robot Schematics Acquired . | . . . Robots Built . | . . . Authchips . | . . . Time . | . . . Total Robot Build Rating . | . . . Part Schematics Acquired . | . . . Parts Built . | . . . Authchips . | . . . Time . | . . . Total Part Build Rating . | . . . Parts Repaired . | . . . Time . | . . . Parts Recycled . | . . . Recycled Matter . | . . . Retrieved Matter . | . . . Retrieved Components . | . . . Parts Scanalyzed . | . . . Part Schematics Acquired . | . . . Parts Damaged . | . . . Bothacking | -11 -10 -10 ------------ Run | Yrd Mat Sub Used RIF Installer . | . . . Robots Hacked . | . . . Non-combat . | . . . Combat . | . . . Robot Hacks Applied . | . . . Relay Couplers Released . | . . . Fabnet Peak Effective % . | . . . Robots Rewired . | . . . Allies Hacked . | . . . Hacks Repelled . | . . . Allies | -11 -10 -10 -------- Run | Yrd Mat Sub Total Allies . | . . . Largest Group . | . . . Highest-Rated Group . | . . . Highest-Rated Ally . | . . . Total Orders . | . . . Ally Attacks . | . . . Total Damage . | . . . Kills . | . . . Allies Corrupted . | . . . Allies Melted . | . . . Intel | -11 -10 -10 ------- Run | Yrd Mat Sub Robot Analysis Total 1 | . 1 . Derelict Logs Recovered . | . . . Drone Launches . | . . . Drone Recoveries . | . . . Exploration | -11 -10 -10 ------------- Run | Yrd Mat Sub Turns Passed 1281 | 34 1109 138 Spaces Moved 866 | 27 745 94 Core 3 | 3 . . Treads . | . . . Legs . | . . . Wheels 863 | 24 745 94 Hover . | . . . Flight . | . . . Fastest Speed 50 | 50 90 95 Average Speed 103 | 94 104 95 Slowest Speed 125 | 100 125 95 Overloaded Moves . | . . . Propulsion Burnouts . | . . . Robots Hopped . | . . . Cave-ins Triggered . | . . . Exploration Rate (%) 35 | 4 96 6 Regions Visited 2 Branch Regions 1 Pre-discovered Areas . | . . . Known Exits Taken . | . . . Unknown Exits Taken 2 | 1 1 . Scrap Searched . | . . . Spaces Dug . | . . . Terrain Destroyed . | . . . Melee . | . . . Projectile . | . . . AOE . | . . . Terrain Rammed . | . . . Walls Destroyed . | . . . Machines Disabled . | . . . Actions | -11 -10 -10 --------- Run | Yrd Mat Sub Total 1084 | 32 935 117 Wait 85 | . 78 7 Move 864 | 26 744 94 Hop . | . . . Pick Up 11 | . 10 1 Fast Attach 16 | 6 10 . Attach 1 | . 1 . Detach . | . . . Swap 10 | . 10 . Drop 6 | . 6 . Fire 91 | . 76 15 Melee . | . . . Ram . | . . . Kick . | . . . Crush . | . . . Escape Stasis . | . . . Rewire . | . . . Trap . | . . . Miscellaneous . | . . . Route ------- -11/Scrapyard -10/Materials (discovered 6 exits: [*Mat x3] / [*Min x2] / [*Sub]) -10/Subcaves History --------- Turn | Location | Event 9 | -11/Scrapyard | Discovered new exit (range 16) 35 | -11/Scrapyard | Entered Materials 163 | -10/Materials | Discovered new exit (range 15) 239 | -10/Materials | Discovered new exit (range 15) 289 | -10/Materials | Discovered new exit (range 13) 311 | -10/Materials | Build established: Mutant 536 | -10/Materials | Discovered new exit (range 8) 735 | -10/Materials | Derelicts attacked the area 880 | -10/Materials | Core integrity fell below 50% 956 | -10/Materials | Discovered new exit (range 16) 1137 | -10/Materials | Discovered new exit (range 5) 1144 | -10/Materials | Entered Subcaves 1150 | -10/Subcaves | A swath of the cavern ceiling suddenly collapsed 1276 | -10/Subcaves | Core integrity fell below 20% 1282 | -10/Subcaves | Destroyed by 49-2CG(R) with Subdweller Beam Cannon Last Messages --------------- 01107_ K-01 Serf cleans the Electrolysis Chamber. 01112_ Dropped Wheel. 01113_ Dropped Ion Engine. 01113_ Dropped Assault Rifle. 01115_ Acquired Com. Wheel. 01119_ Acquired Wheel. 01123_ Acquired 10 matter. 01125_ Acquired Wheel. 01137_ EXIT=FOUND 01141_ Acquired Wheel. LOCATION=UNKNOWN AMBIENT_HEAT=-10 GOAL=ESCAPE A swath of the cavern ceiling suddenly collapses. 01239_ Critical hit (Burn: +37). 01253_ G-47 Trooper destroyed. 01255_ G-34 Mercenary destroyed. 01259_ Acquired Sml. Laser. 01260_ Acquired 36 matter. 01278_ 49-2CG(R) suffers critical hit (Destroy). Map ----- +----------------------------------------------------+ | ?????????????????????????????????????????????????? | | ?????????????????????????????????????????????????? | | ?????????????????????????????????????????????????? | | ?????????????????????????????????????????????????? | | ?????????????????????????????????????????????????? | | ???????????????????????????????????# #????????? | | ??????????????????????????????????# #???????? | | ?????????????????????????????????? #??????? | | ?????????????????????????????????? #??????? | | ??????????????????????????????????# #?????? | | ??????????????????????????????????# ??????? | | ??????????????????????????????????# ???????? | | ??????????????????????????????????? ???????? | | ???????????????????????????????????# ????????? | | ??????????????????????????????????## #????????? | | ?????????????????????????????????## #????????? | | ????????????????????????????????## #????????? | | ???????????????????????????????## ######?##? | | ??????????????????????????????## # ## ## | | ??????????????????????????????# # # | | ??????????????????????????????# # ### | | ??????????????????????????????## ## ## ## | | ??????????????????????????##### ##### #### # | | ????????????????????????##<$$$## ## ###?###??## | | ???????????????????????##&R ???# #% ## #???### | | ???????????????????????#;@###### # #????#"" | | ???????????????????????##< # ### # #????##" | | ????????????????????????### ## #??### #?????## | | ????????????????????????##" < ###???? #?????# | | ????????????????????????# ##?????# | | ????????????????????????# ## ####???# | | ???????????????????????# ### ###### ##??# | | ???????????????????????# ##########???# "#### | | ??????????????????????# ##?????????#####""###" | | ?????????????????????# ##??????????# #"#"#"" | | ?????????????????????## ###????????????# ##"""" | | ?????????????????????? ???????????????# # ###"" | | ?????????????????????## ??????????????## ####"## | | ??????????????????????# ??????????????# "# #"# | | ??????????????????????# ??????????????## "## #"# | | ?????????????????????? ???????????????# # # # | | ?????????????????????? ??????????????## ### | | ????????????????????? ???????????????# " ##?? | | ????????????????????? ???????????????# "##??? | | ????????????????????? ???????????????### ##???? | | ??????????????????????? ?????????????????####????? | | ?????????????????????????????????????????????????? | | ?????????????????????????????????????????????????? | | ?????????????????????????????????????????????????? | | ?????????????????????????????????????????????????? | +----------------------------------------------------+ Best States ------------- Heat Dissipation 25 Energy Generation 10 Energy Capacity 250 Matter Stores 300 Matter Capacity 300 Sight Range 16 Terrain Scan Density 10 Core Shielding 20 Weapon Shielding 33 Evasion (%) 42 Targeting Accuracy 5 Item Schematics ----------------- None Robot Schematics ------------------ None Fabricated ------------ Nothing Alien Tech Used ----------------- None Achievements -------------- None Challenges ------------ None Game ------ Seed StormSchematicFrame Manual? 0 Play Time 00:11:51 Cumulative 274.3 hours Start 2024.04.22 @ 15:13:10 End 2024.04.22 @ 15:24:07 Sessions 1 Manual Loads 0 Difficulty Rogue Special Mode None Game No. 217 Rogue 205 Adventurer 12 Explorer 0 Win Type - Total 1 Types 1/0/0/0/0/0/0/0/0 Lore% 33 Gallery% 51 Achievement% 37 Wizard Run 0 Options --------- Layout 1 ASCII 0 Keyboard 0 Movement Mouse Keybinds 0 Fullscreen 1 Font 32/SmallcapsGlow Map View 77x35 Zoom Use 0% Tactical HUD 1 Map Filters NONE Filters NONE Steam 1 RUN: 1b4849c3-82fc-48f7-8d80-650205733879